[Event "*** Titled Tuesday Blitz"]
[Site "Chess.com"]
[Date "2021.03.02"]
[Round "4"]
[White "Grammnik"]
[Black "Bayernbk"]
[Result "0-1"]
[WhiteElo "2373"]
[BlackElo "2544"]
[TimeControl "180+1"]
[EndTime "10:40:10 PST"]
[Termination "Bayernbk won by resignation"]

1. d4 {[%clk 0:03:00.9]} 1... Nf6 {[%clk 0:02:57.1]} 2. Nf3 {[%clk 0:03:00.5]}
2... e6 {[%clk 0:02:54.8]} 3. c4 {[%clk 0:03:00.9]} 3... d5 {[%clk 0:02:55.3]}
4. Nc3 {[%clk 0:03:00.5]} 4... c5 {[%clk 0:02:55.9]} 5. cxd5 {[%clk 0:02:59.9]}
5... Nxd5 {[%clk 0:02:56.6]} 6. e4 {[%clk 0:02:59.3]} 6... Nxc3 {[%clk 0:02:57]}
7. bxc3 {[%clk 0:03:00.2]} 7... cxd4 {[%clk 0:02:57.7]} 8. cxd4 {[%clk
0:03:00.3]} 8... Bb4+ {[%clk 0:02:58.4]} 9. Bd2 {[%clk 0:03:00.9]} 9... Bxd2+
{[%clk 0:02:59.1]} 10. Qxd2 {[%clk 0:03:01.3]} 10... O-O {[%clk 0:02:59.6]} 11.
Bc4 {[%clk 0:03:01.4]} 11... Nc6 {[%clk 0:02:59.4]} 12. O-O {[%clk 0:02:56.9]}
12... b6 {[%clk 0:02:59.3]} 13. Rad1 {[%clk 0:02:44.4]} 13... Bb7 {[%clk
0:02:57.8]} 14. Rfe1 {[%clk 0:02:43.9]} 14... Rc8 {[%clk 0:02:57.5]} 15. d5
{[%clk 0:02:43.8]} 15... Na5 {[%clk 0:02:51.6]} 16. Bd3 {[%clk 0:02:25.1]} 16...
exd5 {[%clk 0:02:50.8]} 17. e5 {[%clk 0:02:19.4]} 17... Nc4 {[%clk 0:02:50.5]}
18. Qf4 {[%clk 0:02:09.5]} 18... Nb2 {[%clk 0:02:49.9]} 19. Bxh7+ {[%clk
0:01:32.4]} 19... Kxh7 {[%clk 0:02:37.6]} 20. Rb1 {[%clk 0:01:27.2]} 20... Rc4
{[%clk 0:02:23.1]} 21. Qf5+ {[%clk 0:01:23.3]} 21... g6 {[%clk 0:02:20.7]} 22.
Qh3+ {[%clk 0:01:22.3]} 22... Kg7 {[%clk 0:02:20.3]} 23. Rxb2 {[%clk 0:01:21.6]}
23... Bc8 {[%clk 0:02:03.6]} 24. Qg3 {[%clk 0:01:13.6]} 24... Rg4 {[%clk
0:01:55]} 25. e6 {[%clk 0:01:03.3]} 25... Rxg3 {[%clk 0:01:20.2]} 26. e7 {[%clk
0:01:02.9]} 26... Rxg2+ {[%clk 0:01:18.3]} 27. Kxg2 {[%clk 0:01:02.3]} 27... Qd7
{[%clk 0:01:18.5]} 28. exf8=Q+ {[%clk 0:01:00.4]} 28... Kxf8 {[%clk 0:01:19.2]}
29. Rb3 {[%clk 0:00:44.5]} 29... Qg4+ {[%clk 0:01:10.9]} 30. Kf1 {[%clk
0:00:43]} 30... Ba6+ {[%clk 0:01:09.5]} 31. Re2 {[%clk 0:00:42.4]} 31... Bxe2+
{[%clk 0:01:07.8]} 32. Kxe2 {[%clk 0:00:42.6]} 32... Qe4+ {[%clk 0:01:03.6]} 33.
Kd2 {[%clk 0:00:42.4]} 33... Qf4+ {[%clk 0:01:00.2]} 34. Ke2 {[%clk 0:00:41.4]}
34... a5 {[%clk 0:00:57]} 35. Rd3 {[%clk 0:00:39.5]} 35... b5 {[%clk 0:00:50.8]}
36. Rd4 {[%clk 0:00:38.9]} 36... Qf5 {[%clk 0:00:50.8]} 37. Ke3 {[%clk
0:00:37.6]} 37... b4 {[%clk 0:00:49]} 38. Nd2 {[%clk 0:00:34.9]} 38... Qc2
{[%clk 0:00:45.2]} 39. Rxd5 {[%clk 0:00:32.4]} 39... Qxa2 {[%clk 0:00:45.3]} 40.
Rd8+ {[%clk 0:00:27.8]} 40... Ke7 {[%clk 0:00:45.6]} 41. Rd4 {[%clk 0:00:26.8]}
41... f5 {[%clk 0:00:42.1]} 42. f4 {[%clk 0:00:25]} 42... b3 {[%clk 0:00:37.4]}
43. Rd5 {[%clk 0:00:22.8]} 43... a4 {[%clk 0:00:31.8]} 44. Rb5 {[%clk 0:00:20]}
44... Qc2 {[%clk 0:00:29]} 45. Nf3 {[%clk 0:00:16.7]} 45... Qc3+ {[%clk
0:00:27.3]} 46. Kf2 {[%clk 0:00:15.9]} 46... b2 {[%clk 0:00:24.4]} 47. Kg3
{[%clk 0:00:15.3]} 47... a3 {[%clk 0:00:21.2]} 48. Rb7+ {[%clk 0:00:12.7]} 48...
Kd8 {[%clk 0:00:21.3]} 49. Rb8+ {[%clk 0:00:11.9]} 49... Kc7 {[%clk 0:00:21]}
50. Rb5 {[%clk 0:00:09.5]} 50... a2 {[%clk 0:00:19.6]} 51. h4 {[%clk 0:00:06.6]}
51... b1=Q {[%clk 0:00:18.5]} 0-1

[Event "*** Titled Tuesday Blitz"]
[Site "Chess.com"]
[Date "2021.03.02"]
[Round "4"]
[White "Yaryi_sergey"]
[Black "maheswaran26"]
[Result "1-0"]
[WhiteElo "2490"]
[BlackElo "2263"]
[TimeControl "180+1"]
[EndTime "10:40:10 PST"]
[Termination "Yaryi_sergey won on time"]

1. e4 {[%clk 0:01:47.3]} 1... c6 {[%clk 0:02:54.5]} 2. d3 {[%clk 0:01:44.2]}
2... d5 {[%clk 0:02:52.7]} 3. Nc3 {[%clk 0:01:41]} 3... Nf6 {[%clk 0:02:44.7]}
4. Be2 {[%clk 0:01:39.1]} 4... e6 {[%clk 0:02:22.6]} 5. Nf3 {[%clk 0:01:35]}
5... Bb4 {[%clk 0:02:19]} 6. e5 {[%clk 0:01:31.5]} 6... Nfd7 {[%clk 0:02:16]} 7.
a3 {[%clk 0:01:31.3]} 7... Be7 {[%clk 0:02:09.8]} 8. h4 {[%clk 0:01:27.6]} 8...
c5 {[%clk 0:02:04.4]} 9. Bf4 {[%clk 0:01:25.3]} 9... Nc6 {[%clk 0:02:03.3]} 10.
h5 {[%clk 0:01:24.9]} 10... h6 {[%clk 0:02:02.7]} 11. Qd2 {[%clk 0:01:24.3]}
11... a6 {[%clk 0:01:58.1]} 12. Nd1 {[%clk 0:01:21]} 12... b5 {[%clk 0:01:42.5]}
13. Ne3 {[%clk 0:01:17.8]} 13... Bb7 {[%clk 0:01:40.3]} 14. Ng4 {[%clk
0:01:16.8]} 14... Nd4 {[%clk 0:01:35.7]} 15. Bd1 {[%clk 0:01:11.5]} 15... Nf5
{[%clk 0:01:24.3]} 16. d4 {[%clk 0:01:07.8]} 16... cxd4 {[%clk 0:01:14.2]} 17.
Nxd4 {[%clk 0:01:06.7]} 17... Nxd4 {[%clk 0:01:14.3]} 18. Qxd4 {[%clk
0:01:06.4]} 18... Bg5 {[%clk 0:01:12.2]} 19. Bg3 {[%clk 0:01:04.2]} 19... Qb6
{[%clk 0:01:07.8]} 20. c3 {[%clk 0:00:58.9]} 20... Qxd4 {[%clk 0:01:03.3]} 21.
cxd4 {[%clk 0:00:58.5]} 21... Rc8 {[%clk 0:01:03.6]} 22. f4 {[%clk 0:00:57.5]}
22... Bd8 {[%clk 0:01:01.6]} 23. Ne3 {[%clk 0:00:55.4]} 23... Bb6 {[%clk
0:00:42.9]} 24. Nc2 {[%clk 0:00:55.1]} 24... f5 {[%clk 0:00:36.4]} 25. Bf2
{[%clk 0:00:54.1]} 25... Kf7 {[%clk 0:00:27.4]} 26. Kd2 {[%clk 0:00:53.5]} 26...
Nb8 {[%clk 0:00:23.6]} 27. Rh3 {[%clk 0:00:49]} 27... Nc6 {[%clk 0:00:23.3]} 28.
b4 {[%clk 0:00:44.6]} 28... a5 {[%clk 0:00:21]} 29. Be2 {[%clk 0:00:36.5]} 29...
axb4 {[%clk 0:00:18]} 30. axb4 {[%clk 0:00:36.1]} 30... Ra8 {[%clk 0:00:18]} 31.
Rha3 {[%clk 0:00:35.6]} 31... Rxa3 {[%clk 0:00:11.5]} 32. Nxa3 {[%clk
0:00:31.6]} 32... Bxd4 {[%clk 0:00:09.1]} 33. Bxd4 {[%clk 0:00:29.3]} 33... Nxd4
{[%clk 0:00:08.8]} 34. Ke3 {[%clk 0:00:26.6]} 34... Nc6 {[%clk 0:00:04.8]} 35.
Nxb5 {[%clk 0:00:25]} 35... Ke7 {[%clk 0:00:04.1]} 36. Nd6 {[%clk 0:00:24]}
36... Ra8 {[%clk 0:00:03.4]} 37. Rxa8 {[%clk 0:00:21.4]} 37... Bxa8 {[%clk
0:00:03.2]} 38. b5 {[%clk 0:00:20.9]} 38... Na5 {[%clk 0:00:02.9]} 39. b6 {[%clk
0:00:16.4]} 39... Kd7 {[%clk 0:00:02.2]} 40. Bb5+ {[%clk 0:00:15]} 40... Bc6
{[%clk 0:00:01]} 41. Ba6 {[%clk 0:00:13.6]} 1-0

[Event "*** Titled Tuesday Blitz"]
[Site "Chess.com"]
[Date "2021.03.02"]
[Round "4"]
[White "mishanick"]
[Black "Gabrielian_Artur"]
[Result "1-0"]
[WhiteElo "3019"]
[BlackElo "2787"]
[TimeControl "180+1"]
[EndTime "10:40:12 PST"]
[Termination "mishanick won on time"]

1. c4 {[%clk 0:02:57.7]} 1... Nf6 {[%clk 0:02:58.8]} 2. Nc3 {[%clk 0:02:57.2]}
2... g6 {[%clk 0:02:58.3]} 3. d4 {[%clk 0:02:54.1]} 3... Bg7 {[%clk 0:02:57]} 4.
e4 {[%clk 0:02:51.3]} 4... O-O {[%clk 0:02:56.9]} 5. Be2 {[%clk 0:02:52]} 5...
d6 {[%clk 0:02:56.3]} 6. Be3 {[%clk 0:02:52.6]} 6... c5 {[%clk 0:02:46]} 7. d5
{[%clk 0:02:52.6]} 7... e6 {[%clk 0:02:27]} 8. Nf3 {[%clk 0:02:44.9]} 8... Re8
{[%clk 0:02:24.5]} 9. Nd2 {[%clk 0:02:41.5]} 9... Nbd7 {[%clk 0:02:22.1]} 10.
O-O {[%clk 0:02:38.6]} 10... a6 {[%clk 0:02:22]} 11. dxe6 {[%clk 0:02:35.6]}
11... Rxe6 {[%clk 0:02:19.6]} 12. f4 {[%clk 0:02:31.7]} 12... Re8 {[%clk
0:02:18.7]} 13. Bf3 {[%clk 0:02:31.4]} 13... Rb8 {[%clk 0:02:17.9]} 14. a4
{[%clk 0:02:28]} 14... b6 {[%clk 0:02:18.2]} 15. Qc2 {[%clk 0:02:25.5]} 15...
Bb7 {[%clk 0:02:18.3]} 16. Rae1 {[%clk 0:02:24.5]} 16... Qc7 {[%clk 0:02:16]}
17. Bf2 {[%clk 0:02:08.1]} 17... Bc6 {[%clk 0:02:11.2]} 18. b3 {[%clk
0:02:03.1]} 18... Re7 {[%clk 0:02:07.7]} 19. Bg3 {[%clk 0:01:54.7]} 19... Rbe8
{[%clk 0:02:07]} 20. Re2 {[%clk 0:01:32.6]} 20... h5 {[%clk 0:02:04.5]} 21. Bh4
{[%clk 0:01:26.4]} 21... Qb7 {[%clk 0:01:40.5]} 22. Qd3 {[%clk 0:01:24.8]} 22...
Re6 {[%clk 0:01:38.6]} 23. Kh1 {[%clk 0:01:21.5]} 23... Nh7 {[%clk 0:01:31.9]}
24. Nd5 {[%clk 0:01:17.8]} 24... Ndf6 {[%clk 0:01:23.5]} 25. Rfe1 {[%clk
0:01:08.8]} 25... b5 {[%clk 0:01:23]} 26. h3 {[%clk 0:00:59.4]} 26... bxa4
{[%clk 0:01:22.3]} 27. bxa4 {[%clk 0:00:59.1]} 27... Nd7 {[%clk 0:01:05.6]} 28.
Nb1 {[%clk 0:00:49]} 28... g5 {[%clk 0:00:29.3]} 29. fxg5 {[%clk 0:00:35.5]}
29... Ne5 {[%clk 0:00:29.2]} 30. Qc2 {[%clk 0:00:36.1]} 30... Ng6 {[%clk
0:00:29.4]} 31. Bg3 {[%clk 0:00:28.5]} 31... h4 {[%clk 0:00:29.7]} 32. Bh2
{[%clk 0:00:28.9]} 32... Nxg5 {[%clk 0:00:30]} 33. Bg4 {[%clk 0:00:29.2]} 33...
Re5 {[%clk 0:00:16.3]} 34. Nd2 {[%clk 0:00:29.1]} 34... Bxd5 {[%clk 0:00:12.9]}
35. cxd5 {[%clk 0:00:26.2]} 35... Qb4 {[%clk 0:00:12.6]} 36. Bxe5 {[%clk
0:00:16.3]} 36... Nxe5 {[%clk 0:00:11.1]} 37. Rb1 {[%clk 0:00:15.6]} 37... Qd4
{[%clk 0:00:10.9]} 38. Nf3 {[%clk 0:00:12]} 38... Nexf3 {[%clk 0:00:10.7]} 39.
Bxf3 {[%clk 0:00:12.9]} 39... Qe5 {[%clk 0:00:10.1]} 40. Bg4 {[%clk 0:00:12.7]}
40... Qg3 {[%clk 0:00:09.8]} 41. Qb3 {[%clk 0:00:05.7]} 41... Qf4 {[%clk
0:00:08.2]} 42. g3 {[%clk 0:00:06.1]} 42... hxg3 {[%clk 0:00:07.9]} 43. Kg2
{[%clk 0:00:06.6]} 43... Nxe4 {[%clk 0:00:06.6]} 44. Rf1 {[%clk 0:00:06.5]}
44... Qe5 {[%clk 0:00:06.7]} 45. Qf3 {[%clk 0:00:06.7]} 45... Re7 {[%clk
0:00:04.2]} 46. Bf5 {[%clk 0:00:05.9]} 1-0

[Event "*** Titled Tuesday Blitz"]
[Site "Chess.com"]
[Date "2021.03.02"]
[Round "4"]
[White "Sanan_Sjugirov"]
[Black "bakki78"]
[Result "1/2-1/2"]
[WhiteElo "2930"]
[BlackElo "2785"]
[TimeControl "180+1"]
[EndTime "10:40:12 PST"]
[Termination "Game drawn by agreement"]

1. d4 {[%clk 0:03:00.9]} 1... d6 {[%clk 0:02:58.4]} 2. Nf3 {[%clk 0:03:00.4]}
2... Nf6 {[%clk 0:02:57.5]} 3. Bg5 {[%clk 0:02:55]} 3... g6 {[%clk 0:02:56]} 4.
Bxf6 {[%clk 0:02:54.7]} 4... exf6 {[%clk 0:02:55.6]} 5. g3 {[%clk 0:02:45.4]}
5... f5 {[%clk 0:02:55.1]} 6. Bg2 {[%clk 0:02:45.3]} 6... h5 {[%clk 0:02:54.5]}
7. h4 {[%clk 0:02:44.1]} 7... Bh6 {[%clk 0:02:54.6]} 8. e3 {[%clk 0:02:42.1]}
8... O-O {[%clk 0:02:54.3]} 9. O-O {[%clk 0:02:38.9]} 9... Nd7 {[%clk
0:02:54.4]} 10. c4 {[%clk 0:02:33.9]} 10... Nf6 {[%clk 0:02:54]} 11. Nc3 {[%clk
0:02:33.6]} 11... Ng4 {[%clk 0:02:51.6]} 12. Qd3 {[%clk 0:02:31.8]} 12... Re8
{[%clk 0:02:50.3]} 13. Rfe1 {[%clk 0:02:27.6]} 13... c6 {[%clk 0:02:49.7]} 14.
Nh2 {[%clk 0:02:23.1]} 14... Nf6 {[%clk 0:02:45.9]} 15. b4 {[%clk 0:02:18]}
15... Bd7 {[%clk 0:02:43.5]} 16. Rab1 {[%clk 0:02:16.8]} 16... Rc8 {[%clk
0:02:42.1]} 17. a4 {[%clk 0:02:01.8]} 17... Qe7 {[%clk 0:01:56.8]} 18. b5 {[%clk
0:01:44.3]} 18... Rc7 {[%clk 0:01:54.6]} 19. bxc6 {[%clk 0:01:30.4]} 19... bxc6
{[%clk 0:01:53.8]} 20. a5 {[%clk 0:01:28.7]} 20... Ne4 {[%clk 0:01:52.1]} 21.
Nf3 {[%clk 0:01:13.3]} 21... Bc8 {[%clk 0:01:48.6]} 22. Nd2 {[%clk 0:01:07.5]}
22... Nf6 {[%clk 0:01:22.3]} 23. Ne2 {[%clk 0:01:05.4]} 23... Ba6 {[%clk
0:01:19.9]} 24. Qa3 {[%clk 0:00:43.7]} 24... Ng4 {[%clk 0:01:16.9]} 25. Rb3
{[%clk 0:00:18]} 25... Qf6 {[%clk 0:01:01]} 26. Bf3 {[%clk 0:00:11.2]} 26... c5
{[%clk 0:00:53.4]} 27. dxc5 {[%clk 0:00:06.8]} 27... Rxc5 {[%clk 0:00:51.6]} 28.
Kg2 {[%clk 0:00:03.7]} 28... Qe5 {[%clk 0:00:46.8]} 29. Rd3 {[%clk 0:00:02.9]}
29... Nf6 {[%clk 0:00:18.4]} 30. Qc3 {[%clk 0:00:02.5]} 30... Qxc3 {[%clk
0:00:17.3]} 31. Nxc3 {[%clk 0:00:03.4]} 31... Bxc4 {[%clk 0:00:16.2]} 32. Nxc4
{[%clk 0:00:03.4]} 32... Rxc4 {[%clk 0:00:16.4]} 33. Nb5 {[%clk 0:00:03.8]}
33... Ra4 {[%clk 0:00:15.4]} 34. a6 {[%clk 0:00:03.4]} 34... Rd8 {[%clk
0:00:14.1]} 35. Bb7 {[%clk 0:00:03.3]} 35... Ne4 {[%clk 0:00:11.9]} 36. Nxa7
{[%clk 0:00:03.1]} 36... Nc5 {[%clk 0:00:12.2]} 37. Rd5 {[%clk 0:00:03.2]} 37...
Nxa6 {[%clk 0:00:12.1]} 38. Nc6 {[%clk 0:00:03.6]} 38... Re8 {[%clk 0:00:11.5]}
39. Bxa6 {[%clk 0:00:02.5]} 39... Rxa6 {[%clk 0:00:10.7]} 40. Rxd6 {[%clk
0:00:02.9]} 40... Kg7 {[%clk 0:00:11.2]} 41. Red1 {[%clk 0:00:02.9]} 41... Rc8
{[%clk 0:00:11.1]} 42. Nb4 {[%clk 0:00:02.7]} 42... Rxd6 {[%clk 0:00:11.1]} 43.
Rxd6 {[%clk 0:00:03.6]} 43... Rc7 {[%clk 0:00:11.2]} 44. Rb6 {[%clk 0:00:03.6]}
44... Rd7 {[%clk 0:00:11]} 45. Nc6 {[%clk 0:00:03.5]} 45... Kh7 {[%clk
0:00:10.9]} 46. Ne5 {[%clk 0:00:03.6]} 46... Re7 {[%clk 0:00:11.1]} 47. Nc4
{[%clk 0:00:03.9]} 47... Rc7 {[%clk 0:00:09.3]} 1/2-1/2

[Event "*** Titled Tuesday Blitz"]
[Site "Chess.com"]
[Date "2021.03.02"]
[Round "4"]
[White "j2806"]
[Black "Taktikmonster"]
[Result "1-0"]
[WhiteElo "2095"]
[BlackElo "2368"]
[TimeControl "180+1"]
[EndTime "10:40:13 PST"]
[Termination "j2806 won by checkmate"]

1. e4 {[%clk 0:02:04.9]} 1... c5 {[%clk 0:02:56.1]} 2. Nf3 {[%clk 0:02:04.5]}
2... d6 {[%clk 0:02:56]} 3. d4 {[%clk 0:02:05]} 3... cxd4 {[%clk 0:02:56.9]} 4.
Nxd4 {[%clk 0:02:05.7]} 4... Nf6 {[%clk 0:02:57.3]} 5. Nc3 {[%clk 0:02:05.9]}
5... Nc6 {[%clk 0:02:57.9]} 6. Be3 {[%clk 0:02:06.3]} 6... e5 {[%clk 0:02:57.8]}
7. Nb3 {[%clk 0:02:05]} 7... Be7 {[%clk 0:02:58]} 8. f3 {[%clk 0:02:05.6]} 8...
O-O {[%clk 0:02:57.4]} 9. Qd2 {[%clk 0:02:06.2]} 9... a5 {[%clk 0:02:58]} 10.
O-O-O {[%clk 0:02:06.2]} 10... a4 {[%clk 0:02:55.9]} 11. Na1 {[%clk 0:02:05.6]}
11... Be6 {[%clk 0:02:55.3]} 12. Kb1 {[%clk 0:02:05.8]} 12... Qa5 {[%clk
0:02:53.2]} 13. g4 {[%clk 0:02:04.3]} 13... Rfc8 {[%clk 0:02:29.9]} 14. h4
{[%clk 0:01:58.8]} 14... a3 {[%clk 0:02:07.5]} 15. b3 {[%clk 0:01:47]} 15... Nb4
{[%clk 0:01:50.6]} 16. h5 {[%clk 0:01:34.7]} 16... d5 {[%clk 0:01:21.6]} 17.
exd5 {[%clk 0:01:28.5]} 17... Nfxd5 {[%clk 0:01:22.5]} 18. Nxd5 {[%clk
0:01:26.4]} 18... Bxd5 {[%clk 0:01:21.8]} 19. Bg2 {[%clk 0:01:14.8]} 19... Bf6
{[%clk 0:01:05.2]} 20. c3 {[%clk 0:01:08.8]} 20... Nxa2 {[%clk 0:00:42.6]} 21.
Kxa2 {[%clk 0:01:07.4]} 21... Rxc3 {[%clk 0:00:36.3]} 22. Rc1 {[%clk 0:00:48]}
22... Rac8 {[%clk 0:00:13]} 23. Rxc3 {[%clk 0:00:31.8]} 23... Qxc3 {[%clk
0:00:12.7]} 24. Rc1 {[%clk 0:00:27]} 24... Qxd2+ {[%clk 0:00:04.1]} 25. Bxd2
{[%clk 0:00:26.1]} 25... Rd8 {[%clk 0:00:04.6]} 26. Be3 {[%clk 0:00:19.6]} 26...
Be7 {[%clk 0:00:03.8]} 27. Nc2 {[%clk 0:00:19.5]} 27... Bc6 {[%clk 0:00:03.9]}
28. Nxa3 {[%clk 0:00:18.8]} 28... Rd3 {[%clk 0:00:04.1]} 29. Bc5 {[%clk
0:00:17.1]} 29... Bxc5 {[%clk 0:00:03.9]} 30. Rxc5 {[%clk 0:00:17.3]} 30... Kf8
{[%clk 0:00:04.6]} 31. Rc2 {[%clk 0:00:17.1]} 31... Bxf3 {[%clk 0:00:04.1]} 32.
Bxf3 {[%clk 0:00:16.1]} 32... Rxf3 {[%clk 0:00:05]} 33. Rg2 {[%clk 0:00:15.3]}
33... e4 {[%clk 0:00:05]} 34. Nc4 {[%clk 0:00:15.3]} 34... Ke7 {[%clk
0:00:04.6]} 35. Kb2 {[%clk 0:00:15.2]} 35... Ke6 {[%clk 0:00:04.6]} 36. Kc2
{[%clk 0:00:15.6]} 36... Kd5 {[%clk 0:00:04.6]} 37. Nd2 {[%clk 0:00:14.3]} 37...
Re3 {[%clk 0:00:04.2]} 38. g5 {[%clk 0:00:14.4]} 38... Kd4 {[%clk 0:00:04.2]}
39. g6 {[%clk 0:00:14.2]} 39... hxg6 {[%clk 0:00:03.9]} 40. hxg6 {[%clk
0:00:14.6]} 40... f5 {[%clk 0:00:04.8]} 41. Rf2 {[%clk 0:00:14.2]} 41... Ke5
{[%clk 0:00:04.9]} 42. Nc4+ {[%clk 0:00:14]} 42... Kd4 {[%clk 0:00:05.5]} 43.
Nxe3 {[%clk 0:00:14.2]} 43... Kxe3 {[%clk 0:00:06.4]} 44. Rxf5 {[%clk 0:00:15]}
44... Ke2 {[%clk 0:00:06.5]} 45. Rf7 {[%clk 0:00:14.8]} 45... e3 {[%clk
0:00:07.4]} 46. Rxg7 {[%clk 0:00:15]} 46... Ke1 {[%clk 0:00:08.3]} 47. Re7
{[%clk 0:00:15.3]} 47... e2 {[%clk 0:00:09.2]} 48. g7 {[%clk 0:00:15.8]} 48...
b5 {[%clk 0:00:09.7]} 49. Rf7 {[%clk 0:00:15.1]} 49... b4 {[%clk 0:00:10.6]} 50.
Re7 {[%clk 0:00:14.6]} 50... Kf2 {[%clk 0:00:10.3]} 51. g8=Q {[%clk 0:00:14.5]}
51... e1=Q {[%clk 0:00:11.2]} 52. Rxe1 {[%clk 0:00:14.3]} 52... Kxe1 {[%clk
0:00:12.1]} 53. Qe6+ {[%clk 0:00:13.5]} 53... Kf2 {[%clk 0:00:11.9]} 54. Qc4
{[%clk 0:00:14.4]} 54... Kg1 {[%clk 0:00:12.6]} 55. Qxb4 {[%clk 0:00:15.3]}
55... Kh2 {[%clk 0:00:13.3]} 56. Qd2+ {[%clk 0:00:15.7]} 56... Kh1 {[%clk
0:00:14.2]} 57. b4 {[%clk 0:00:16.5]} 57... Kg1 {[%clk 0:00:14.8]} 58. b5 {[%clk
0:00:17.4]} 58... Kh1 {[%clk 0:00:15.7]} 59. b6 {[%clk 0:00:17.8]} 59... Kg1
{[%clk 0:00:16.6]} 60. b7 {[%clk 0:00:18.7]} 60... Kf1 {[%clk 0:00:17.5]} 61.
b8=Q {[%clk 0:00:19.1]} 61... Kg1 {[%clk 0:00:18.4]} 62. Qg3+ {[%clk 0:00:19]}
62... Kh1 {[%clk 0:00:19.3]} 63. Qdh2# {[%clk 0:00:19.1]} 1-0

[Event "*** Titled Tuesday Blitz"]
[Site "Chess.com"]
[Date "2021.03.02"]
[Round "4"]
[White "MFBerna"]
[Black "beto-betun"]
[Result "1-0"]
[WhiteElo "2402"]
[BlackElo "2193"]
[TimeControl "180+1"]
[EndTime "10:40:13 PST"]
[Termination "MFBerna won by resignation"]

1. d4 {[%clk 0:03:00.9]} 1... Nf6 {[%clk 0:02:58.9]} 2. c4 {[%clk 0:02:58.6]}
2... g6 {[%clk 0:02:59]} 3. Nc3 {[%clk 0:02:57.1]} 3... Bg7 {[%clk 0:02:59.7]}
4. Nf3 {[%clk 0:02:56.4]} 4... O-O {[%clk 0:02:58.9]} 5. g3 {[%clk 0:02:56.6]}
5... d6 {[%clk 0:02:58.4]} 6. Bg2 {[%clk 0:02:56.7]} 6... c6 {[%clk 0:02:59.1]}
7. O-O {[%clk 0:02:57.2]} 7... Bg4 {[%clk 0:02:58.4]} 8. h3 {[%clk 0:02:57]}
8... Bxf3 {[%clk 0:02:57.6]} 9. Bxf3 {[%clk 0:02:57.9]} 9... Nbd7 {[%clk
0:02:57.6]} 10. Bg2 {[%clk 0:02:56.9]} 10... e5 {[%clk 0:02:53.3]} 11. b3 {[%clk
0:02:54.1]} 11... Qc7 {[%clk 0:02:46.8]} 12. Bb2 {[%clk 0:02:52.7]} 12... Rfe8
{[%clk 0:02:46.2]} 13. e3 {[%clk 0:02:48.5]} 13... Rad8 {[%clk 0:02:39.8]} 14.
Qc2 {[%clk 0:02:47.3]} 14... h5 {[%clk 0:02:33.6]} 15. Rad1 {[%clk 0:02:43.1]}
15... a6 {[%clk 0:02:32.2]} 16. Ba3 {[%clk 0:02:37.6]} 16... d5 {[%clk
0:02:11.7]} 17. dxe5 {[%clk 0:02:30.2]} 17... Nxe5 {[%clk 0:02:08.3]} 18. cxd5
{[%clk 0:02:25.5]} 18... cxd5 {[%clk 0:02:07.3]} 19. Qd2 {[%clk 0:02:06.8]}
19... h4 {[%clk 0:01:41.3]} 20. g4 {[%clk 0:01:58.3]} 20... Ne4 {[%clk
0:01:28.8]} 21. Nxe4 {[%clk 0:01:58.2]} 21... dxe4 {[%clk 0:01:28.5]} 22. Qe2
{[%clk 0:01:51.9]} 22... f5 {[%clk 0:00:58.4]} 23. gxf5 {[%clk 0:01:36.1]} 23...
gxf5 {[%clk 0:00:59.3]} 24. Qh5 {[%clk 0:01:30.4]} 24... Qf7 {[%clk 0:00:21.2]}
25. Qxh4 {[%clk 0:01:24.8]} 25... Rxd1 {[%clk 0:00:19.4]} 26. Rxd1 {[%clk
0:01:25.7]} 26... Nd3 {[%clk 0:00:14.2]} 27. Bd6 {[%clk 0:01:05.4]} 27... Re6
{[%clk 0:00:12.7]} 28. Bg3 {[%clk 0:00:51.4]} 28... Rh6 {[%clk 0:00:11.1]} 29.
Qd8+ {[%clk 0:00:52]} 29... Kh7 {[%clk 0:00:11.3]} 30. Bf1 {[%clk 0:00:35.2]}
30... Rg6 {[%clk 0:00:08.3]} 31. Bxd3 {[%clk 0:00:27.6]} 31... exd3 {[%clk
0:00:09.2]} 32. Rxd3 {[%clk 0:00:25.2]} 32... Qf6 {[%clk 0:00:04.4]} 33. Qxf6
{[%clk 0:00:23.7]} 33... Bxf6 {[%clk 0:00:05.3]} 34. Rd7+ {[%clk 0:00:22.1]}
34... Kh6 {[%clk 0:00:04.5]} 35. Rxb7 {[%clk 0:00:21.8]} 35... Be5 {[%clk
0:00:05]} 36. Kg2 {[%clk 0:00:17.6]} 36... f4 {[%clk 0:00:04.8]} 37. exf4 {[%clk
0:00:17.6]} 37... Bxf4 {[%clk 0:00:05.5]} 38. Kf3 {[%clk 0:00:16.2]} 38... Bc1
{[%clk 0:00:03.8]} 39. Rc7 {[%clk 0:00:11.9]} 39... Bg5 {[%clk 0:00:02.5]} 40.
Rd7 {[%clk 0:00:09.4]} 40... Rf6+ {[%clk 0:00:02.8]} 41. Kg2 {[%clk 0:00:08.8]}
41... Kg6 {[%clk 0:00:03.3]} 42. h4 {[%clk 0:00:06.2]} 42... Bd2 {[%clk
0:00:03.3]} 43. Rxd2 {[%clk 0:00:05.8]} 43... Re6 {[%clk 0:00:02.9]} 44. Rd6
{[%clk 0:00:06.7]} 44... Rxd6 {[%clk 0:00:02.5]} 45. Bxd6 {[%clk 0:00:07.6]}
45... Kh5 {[%clk 0:00:03]} 46. Bg3 {[%clk 0:00:08.5]} 46... Kg4 {[%clk
0:00:02.9]} 47. f3+ {[%clk 0:00:09.1]} 47... Kf5 {[%clk 0:00:03.5]} 48. Kh3
{[%clk 0:00:10]} 48... Kg6 {[%clk 0:00:04.4]} 49. a4 {[%clk 0:00:10.5]} 49...
Kf7 {[%clk 0:00:05.1]} 50. b4 {[%clk 0:00:11.4]} 50... Ke6 {[%clk 0:00:05.1]}
51. b5 {[%clk 0:00:11.8]} 51... a5 {[%clk 0:00:06]} 52. Be1 {[%clk 0:00:11.3]}
52... Kd5 {[%clk 0:00:06.9]} 53. Bxa5 {[%clk 0:00:12.2]} 53... Kc5 {[%clk
0:00:07.1]} 54. h5 {[%clk 0:00:13.1]} 54... Kd6 {[%clk 0:00:06.4]} 55. h6 {[%clk
0:00:14]} 55... Ke6 {[%clk 0:00:07.3]} 56. h7 {[%clk 0:00:14.9]} 1-0